bitfinex/quotes_SOLUSD_20230905
["timestamp","ask_amount","ask_price","bid_price","bid_amount"]
[1693932625383,151.8224,20.37,20.347,7.666]
[1693932625580,151.8224,20.37,20.351,7.665]
[1693932625901,97.8224,20.37,20.351,32.17264232]
[1693932626115,97.8224,20.37,20.352,24.50764232]
[1693932626292,97.8224,20.37,20.353,7.664]
[1693932626493,55.0,20.369,20.351,7.665]
[1693932626801,7.66,20.364,20.348,7.666]
[1693932627204,7.66,20.364,20.346,16.01483]
[1693932627505,7.66,20.364,20.346,7.667]
[1693932627705,55.0,20.363,20.346,7.667]
[1693932628001,7.661,20.362,20.346,32.17464232]
[1693932628394,7.661,20.362,20.346,7.667]
[1693932628588,7.662,20.359,20.346,7.667]
[1693932629187,7.663,20.357,20.345,7.667]
[1693932629383,7.663,20.357,20.344,7.667]
[1693932629588,24.746,20.367,20.345,24.50764232]
[1693932629806,40.27138642,20.365,20.345,24.50764232]
[1693932630104,7.661,20.362,20.348,7.666]
[1693932630305,7.661,20.362,20.346,7.667]
[1693932630486,7.661,20.362,20.346,32.17464232]
[1693932630689,54.005,20.363,20.347,79.50764232]
[1693932630889,54.005,20.363,20.351,7.665]
[1693932631096,95.9075,20.366,20.351,32.17264232]
[1693932631498,7.659,20.367,20.351,32.17264232]
[1693932631692,7.659,20.367,20.351,7.665]
[1693932632405,109.897,20.367,20.347,7.666]
[1693932632996,55.0,20.366,20.347,7.666]
[1693932633190,7.661,20.361,20.347,7.666]
[1693932633707,7.661,20.361,20.343,24.50764232]
[1693932633899,7.66,20.363,20.347,7.666]
[1693932635195,7.66,20.363,20.347,32.17364232]
[1693932635702,55.0,20.362,20.343,7.668]
[1693932635901,7.664,20.355,20.341,7.669]
[1693932636993,61.754,20.355,20.341,7.669]
[1693932637404,61.754,20.355,20.339,7.669]
[1693932637709,61.754,20.355,20.34,7.669]
[1693932638403,115.794,20.355,20.334,7.671]
[1693932638705,115.794,20.355,20.332,7.672]
[1693932639388,115.794,20.355,20.332,32.17964232]
[1693932639592,7.665,20.351,20.332,32.17964232]
[1693932639789,55.0,20.35,20.337,7.67]
[1693932640106,7.666,20.349,20.33,7.673]
[1693932640408,7.666,20.349,20.32,49.30964232]
[1693932640409,55.0,20.348,20.32,49.30964232]
[1693932640612,7.669,20.34,20.321,24.50764232]
[1693932640815,55.0,20.339,20.307,137.770636]
[1693932641108,65.45320781,20.339,20.314,7.679]
[1693932641307,98.6487,20.338,20.314,7.679]
[1693932641607,24.768,20.349,20.315,40.54691232]
[1693932641811,98.6487,20.339,20.324,7.675]
[1693932642113,7.67,20.338,20.322,7.676]
[1693932642312,106.3187,20.338,20.322,7.676]
[1693932642607,25.70032878,20.346,20.323,27.675]
[1693932642805,7.668,20.343,20.323,76.98164232]
[1693932643307,7.668,20.343,20.323,44.50764232]
[1693932643495,153.6487,20.345,20.324,7.675]
[1693932643696,98.6487,20.345,20.325,55.0]
[1693932643900,98.6487,20.345,20.329,7.673]
[1693932643901,106.3157,20.345,20.329,7.673]
[1693932644704,98.6487,20.345,20.329,7.673]
[1693932644897,98.6487,20.345,20.329,32.18064232]
[1693932645094,98.6487,20.345,20.334,7.671]
[1693932645407,65.021334,20.346,20.335,24.50764232]
[1693932645610,65.021334,20.346,20.338,32.45]
[1693932645800,14.54719763,20.359,20.338,32.17764232]
[1693932646006,7.663,20.357,20.338,32.17764232]
[1693932646206,99.4056,20.362,20.339,55.0]
[1693932646506,107.0666,20.362,20.343,7.668]
[1693932646694,146.69295201,20.362,20.343,7.668]
[1693932647508,107.0666,20.362,20.343,7.668]
[1693932648197,78.590642,20.363,20.344,55.0]
[1693932648397,7.66,20.365,20.349,7.665]
[1693932649005,7.659,20.368,20.349,7.665]
[1693932649214,87.166642,20.366,20.349,7.665]
[1693932649510,79.507642,20.366,20.349,7.665]
[1693932650501,87.167642,20.366,20.346,7.667]
[1693932651306,79.507642,20.366,20.346,32.17464232]
[1693932651507,79.507642,20.366,20.347,79.50764232]
[1693932651705,79.507642,20.366,20.35,7.665]
[1693932651706,87.166642,20.366,20.35,7.665]
[1693932654307,79.507642,20.366,20.35,7.665]
[1693932654509,7.66,20.365,20.35,7.665]
[1693932654704,55.0,20.364,20.342,24.50764232]
[1693932654911,55.0,20.364,20.322,250.0]
[1693932654912,7.663,20.356,20.337,7.67]
[1693932655715,7.663,20.356,20.337,32.17764232]
[1693932657118,7.663,20.356,20.335,24.776]
[1693932657313,32.433,20.349,20.335,24.776]
[1693932657703,7.668,20.345,20.335,24.776]
[1693932658616,7.667,20.347,20.335,24.776]
[1693932659123,24.792,20.345,20.335,24.776]
[1693932659305,24.792,20.345,20.334,7.671]
[1693932659815,7.665,20.351,20.334,7.671]
[1693932660211,54.113,20.348,20.334,7.671]
[1693932661225,90.0925,20.35,20.334,7.671]
[1693932661518,97.7585,20.35,20.334,7.671]
[1693932661714,90.0925,20.35,20.334,7.671]
[1693932662220,144.1985,20.35,20.334,7.671]
[1693932662413,144.1985,20.35,20.324,24.50764232]
[1693932662614,151.8635,20.35,20.334,7.671]
[1693932663122,144.1985,20.35,20.334,7.671]
[1693932663808,7.664,20.355,20.34,7.669]
[1693932664012,68.6885514,20.361,20.34,7.669]
[1693932664013,90.5058,20.356,20.34,7.669]
[1693932664204,24.756,20.355,20.34,7.669]
[1693932664622,7.664,20.354,20.338,7.67]
[1693932664914,24.756,20.355,20.339,62.669]
[1693932665117,7.658,20.37,20.349,32.431]
[1693932665311,7.658,20.37,20.352,7.664]
[1693932665519,7.658,20.37,20.35,87.17264232]
[1693932665717,7.658,20.37,20.35,32.17264232]
[1693932666321,61.653,20.37,20.35,32.17264232]
[1693932666518,86.143,20.37,20.347,7.666]
[1693932666705,61.653,20.37,20.347,7.666]
[1693932666910,91.3542,20.369,20.344,24.773]
[1693932667218,7.66,20.364,20.348,7.666]
[1693932667404,7.659,20.366,20.348,7.666]
[1693932667605,7.659,20.366,20.348,32.17364232]
[1693932667804,7.659,20.366,20.349,32.17264232]
[1693932668822,7.659,20.366,20.349,24.50764232]
[1693932669220,7.659,20.366,20.34,24.49]
[1693932669421,7.659,20.366,20.344,24.50764232]
[1693932669724,7.659,20.366,20.345,7.667]
[1693932669910,7.661,20.363,20.345,7.667]
[1693932670319,7.66,20.366,20.345,32.17464232]
[1693932670517,91.3542,20.369,20.346,24.50764232]
[1693932670822,91.3542,20.369,20.352,7.664]
[1693932671024,99.0122,20.369,20.352,7.664]
[1693932671320,153.0702,20.369,20.352,7.664]
[1693932671717,153.0702,20.369,20.352,32.17164232]
[1693932672314,145.4122,20.369,20.354,7.664]
[1693932672623,91.3542,20.369,20.354,32.17164232]
[1693932673121,7.658,20.371,20.354,32.17164232]
[1693932673317,96.1726,20.368,20.354,32.17164232]
[1693932674015,7.655,20.379,20.363,7.66]
[1693932674522,7.655,20.379,20.36,7.661]
[1693932674715,7.655,20.379,20.361,55.0]
[1693932674915,7.655,20.379,20.362,32.16864232]
[1693932676132,96.1726,20.38,20.362,32.16864232]
[1693932676714,96.1726,20.38,20.363,55.0]
[1693932677023,7.653,20.383,20.368,7.659]
[1693932677222,55.0,20.381,20.367,7.659]
[1693932678628,95.4735,20.387,20.368,79.50764232]
[1693932678827,95.4735,20.387,20.372,7.657]
[1693932679309,7.652,20.386,20.372,7.657]
[1693932679512,190.947,20.387,20.372,7.657]
[1693932679731,190.947,20.387,20.373,79.50764232]
[1693932680020,95.4735,20.387,20.377,7.655]
[1693932680320,79.507642,20.396,20.38,7.654]
[1693932680521,96.932,20.393,20.38,32.144]
[1693932680715,96.932,20.393,20.384,7.652]
[1693932680908,96.932,20.393,20.381,24.50764232]
[1693932681127,96.932,20.393,20.378,7.654]
[1693932681328,121.669,20.393,20.381,7.653]
[1693932681829,96.932,20.393,20.381,7.653]
[1693932682917,104.581,20.393,20.377,7.655]
[1693932683419,96.932,20.393,20.377,32.16264232]
[1693932684029,104.581,20.393,20.377,32.16264232]
[1693932684222,7.649,20.393,20.377,32.16264232]
[1693932684420,7.649,20.393,20.374,7.656]
[1693932684819,61.579,20.393,20.374,7.656]
[1693932685136,99.0166,20.392,20.363,54.018]
[1693932685332,7.652,20.385,20.37,7.658]
[1693932685926,104.6126,20.384,20.37,7.658]
[1693932686127,104.6126,20.384,20.368,7.658]
[1693932686327,104.6126,20.384,20.363,103.27564232]
[1693932686328,104.6126,20.384,20.365,7.66]
[1693932688226,55.0,20.383,20.365,7.66]
[1693932688431,7.654,20.381,20.365,7.66]
[1693932689331,55.0,20.38,20.362,7.661]
[1693932689530,24.729,20.381,20.362,7.661]
[1693932689721,7.654,20.381,20.362,32.16864232]
[1693932690338,7.654,20.381,20.363,24.50764232]
[1693932690534,7.654,20.381,20.366,7.659]
[1693932691431,7.654,20.381,20.355,14.93811394]
[1693932691639,55.0,20.38,20.356,24.50764232]
[1693932691929,7.656,20.374,20.358,7.662]
[1693932692137,55.0,20.373,20.355,7.663]
[1693932692330,147.2531,20.373,20.355,7.663]
[1693932692832,147.2531,20.373,20.355,32.17064232]
[1693932693137,7.658,20.37,20.355,32.17064232]
[1693932693431,147.2531,20.373,20.356,24.50764232]
[1693932693638,147.2531,20.373,20.36,7.661]
[1693932694525,154.9101,20.373,20.358,7.662]
[1693932694726,179.6691,20.373,20.358,7.662]
[1693932695225,124.6691,20.373,20.358,7.662]
[1693932695929,117.0121,20.373,20.358,7.662]
[1693932696129,117.0121,20.373,20.358,32.16964232]
[1693932696839,124.6691,20.373,20.358,32.16964232]
[1693932697540,92.2531,20.373,20.359,24.50764232]
[1693932697734,92.2531,20.373,20.36,7.662]
[1693932698225,99.9101,20.373,20.359,24.50764232]
[1693932698425,99.9101,20.373,20.359,32.16964232]
[1693932698623,124.6691,20.373,20.359,32.16964232]
[1693932698830,117.0121,20.373,20.359,32.16964232]
[1693932700138,7.657,20.372,20.359,32.16964232]
[1693932700543,117.0121,20.373,20.359,32.16964232]
[1693932700839,92.2531,20.373,20.359,32.16964232]
[1693932701638,54.041,20.374,20.359,32.16964232]
[1693932701843,95.8003,20.372,20.359,32.16964232]
[1693932702847,24.726,20.383,20.359,32.16964232]
[1693932703140,7.655,20.377,20.362,7.661]
[1693932703340,7.655,20.377,20.362,32.16864232]
[1693932704348,95.8003,20.378,20.362,32.16864232]
[1693932704546,95.8003,20.378,20.363,24.50764232]
[1693932704841,95.8003,20.378,20.366,7.659]
[1693932705242,95.8003,20.378,20.364,7.66]
[1693932705243,103.4553,20.378,20.364,7.66]
[1693932705433,7.655,20.378,20.365,24.50764232]
[1693932706167,153.1574,20.382,20.365,32.16664232]
[1693932706437,7.654,20.381,20.365,32.16664232]
[1693932706642,7.654,20.381,20.365,24.50764232]
[1693932708329,7.654,20.381,20.361,7.661]
[1693932708635,55.0,20.38,20.358,7.662]
[1693932708837,7.657,20.374,20.358,7.662]
[1693932709241,7.657,20.374,20.357,24.50764232]
[1693932709443,7.657,20.374,20.357,32.16964232]
[1693932710749,47.947909,20.374,20.357,32.16964232]
[1693932711052,152.6557,20.373,20.357,7.662]
[1693932711347,7.658,20.37,20.357,7.662]
[1693932711648,7.658,20.37,20.349,32.17264232]
[1693932711941,7.66,20.364,20.344,24.773]
[1693932712158,7.66,20.364,20.347,7.666]
[1693932712343,7.66,20.364,20.341,14.64176903]
[1693932712554,55.0,20.363,20.341,14.64176903]
[1693932712752,32.421,20.357,20.341,14.64176903]
[1693932712948,32.421,20.357,20.341,22.30976903]
[1693932713141,97.6557,20.356,20.341,46.81741135]
[1693932713337,7.664,20.355,20.341,39.14941135]
[1693932713666,7.664,20.355,20.341,14.64176903]
[1693932715455,39.842642,20.355,20.342,24.50764232]
[1693932715654,7.664,20.355,20.342,24.50764232]
[1693932715856,7.664,20.355,20.343,7.668]
[1693932716550,7.663,20.357,20.343,7.668]
[1693932716757,7.663,20.357,20.342,24.50764232]
[1693932716758,24.507642,20.356,20.342,24.50764232]
[1693932716953,32.170642,20.356,20.342,24.50764232]
[1693932717544,32.170642,20.356,20.341,14.64176903]
[1693932718143,32.170642,20.356,20.341,22.30976903]
[1693932718342,7.663,20.356,20.341,46.81741135]
[1693932719051,7.663,20.356,20.341,39.14941135]
[1693932720059,7.663,20.356,20.342,7.668]
[1693932720442,7.663,20.356,20.342,32.17564232]
[1693932721061,7.663,20.356,20.341,14.64176903]
[1693932721550,7.663,20.356,20.341,22.31076903]
[1693932721744,7.663,20.356,20.341,14.64176903]
[1693932722054,7.665,20.351,20.341,14.64176903]
[1693932722663,7.665,20.351,20.333,32.17964232]
[1693932722850,103.93,20.35,20.328,24.792]
[1693932723052,7.668,20.345,20.331,7.672]
[1693932723266,250.0,20.332,20.286,109.89758126]
[1693932723569,7.68,20.313,20.295,7.686]
[1693932723747,32.491,20.313,20.295,7.686]
[1693932724060,32.491,20.313,20.29,24.839]
[1693932724259,48.93,20.3,20.26,97.86]
[1693932724562,48.93,20.29,20.266,7.697]
[1693932724866,86.756,20.287,20.264,7.698]
[1693932725155,86.756,20.287,20.261,30.0]
[1693932725365,32.539,20.284,20.261,30.0]
[1693932725560,7.689,20.287,20.26,196.082]
[1693932725751,30.0,20.287,20.275,7.693]
[1693932725950,7.688,20.291,20.276,7.693]
[1693932726151,24.831,20.298,20.274,24.858]
[1693932726152,7.687,20.292,20.277,12.693]
[1693932726358,48.93,20.29,20.277,12.693]
[1693932726758,103.194,20.29,20.277,12.693]
[1693932726957,48.93,20.29,20.277,12.693]
[1693932727356,7.686,20.295,20.277,12.693]
[1693932727758,79.113,20.295,20.277,12.693]
[1693932727960,79.113,20.295,20.278,55.0]
[1693932728158,7.685,20.298,20.283,7.691]
[1693932728569,91.6324,20.299,20.283,7.691]
[1693932728783,7.685,20.297,20.281,7.691]
[1693932729372,7.685,20.297,20.277,5.0]
[1693932729675,55.0,20.296,20.277,5.0]
[1693932729874,7.685,20.297,20.277,12.693]
[1693932730089,55.0,20.296,20.277,12.693]
[1693932730286,7.686,20.296,20.277,12.693]
[1693932730490,55.0,20.298,20.277,83.01033]
[1693932730782,7.686,20.296,20.277,12.693]
[1693932731000,62.685,20.298,20.277,12.693]
[1693932731173,62.685,20.298,20.277,5.0]
[1693932731174,7.689,20.287,20.277,5.0]
[1693932731978,105.781,20.287,20.277,5.0]
[1693932732172,66.13121816,20.286,20.277,5.0]
[1693932732379,86.77,20.284,20.277,5.0]
[1693932732585,7.691,20.282,20.277,5.0]
[1693932732784,32.544,20.28,20.277,5.0]
[1693932733177,24.88,20.284,20.277,5.0]
[1693932733578,32.571,20.284,20.277,5.0]
[1693932733784,24.88,20.284,20.277,5.0]
[1693932735379,54.179,20.304,20.277,4.5]
[1693932735577,54.179,20.304,20.278,24.50764232]
[1693932735775,194.7709,20.307,20.277,28.26233]
[1693932735776,54.255,20.297,20.277,12.193]
[1693932735994,7.687,20.293,20.277,12.193]
[1693932736288,54.255,20.297,20.278,16.06853]
[1693932736490,54.255,20.297,20.283,7.69]
[1693932737291,54.255,20.297,20.278,40.57617232]
[1693932737499,54.255,20.297,20.284,7.69]
[1693932738192,54.255,20.297,20.285,55.0]
[1693932738383,54.255,20.297,20.285,62.69]
[1693932738896,54.255,20.297,20.285,7.69]
[1693932740481,96.7729,20.307,20.278,40.57617232]
[1693932740687,7.686,20.297,20.278,23.76053]
[1693932740887,86.758,20.297,20.278,16.06853]
[1693932741704,55.0,20.296,20.278,16.06853]
[1693932741888,7.688,20.291,20.278,16.06853]
[1693932742087,7.688,20.291,20.276,7.693]
[1693932742392,79.072,20.297,20.278,7.692]
[1693932742588,7.687,20.294,20.278,7.692]
[1693932742894,7.687,20.294,20.279,7.692]
[1693932743102,7.686,20.295,20.279,7.692]
[1693932743593,7.687,20.293,20.279,7.692]
[1693932743784,7.687,20.293,20.277,12.193]
[1693932745000,7.686,20.296,20.279,32.545]
[1693932745188,7.686,20.295,20.28,62.692]
[1693932746502,54.241,20.297,20.28,62.692]
[1693932746798,121.5919,20.307,20.285,32.535]
[1693932747101,7.683,20.303,20.287,7.689]
[1693932747300,7.683,20.303,20.281,49.35764232]
[1693932747514,7.683,20.303,20.285,7.69]
[1693932748099,96.7729,20.307,20.286,55.0]
[1693932748286,7.683,20.305,20.286,55.0]
[1693932748488,7.683,20.305,20.288,7.689]
[1693932748686,7.683,20.305,20.289,55.0]
[1693932748888,62.683,20.305,20.289,62.688]
[1693932749710,14.77059693,20.31,20.289,62.688]
[1693932749711,97.932,20.321,20.29,24.62]
[1693932750004,7.678,20.318,20.298,7.685]
[1693932750207,7.678,20.318,20.299,55.0]
[1693932750387,7.678,20.318,20.301,7.684]
[1693932750989,61.807,20.318,20.301,7.684]
[1693932751189,61.807,20.318,20.299,7.685]
[1693932751704,61.807,20.318,20.3,55.0]
[1693932751895,61.807,20.318,20.303,7.683]
[1693932752089,54.129,20.318,20.303,7.683]
[1693932752295,54.129,20.318,20.304,55.0]
[1693932752599,54.129,20.318,20.304,62.683]
[1693932752902,54.129,20.318,20.304,7.683]
[1693932753694,54.129,20.318,20.305,55.0]
[1693932753900,93.2127,20.321,20.306,7.682]
[1693932754298,7.676,20.323,20.307,55.0]
[1693932754504,7.676,20.322,20.307,55.0]
[1693932754999,62.676,20.322,20.307,55.0]
[1693932755795,55.0,20.322,20.307,62.681]
[1693932755995,7.675,20.325,20.307,62.681]
[1693932756194,7.675,20.325,20.308,24.50764232]
[1693932756401,7.675,20.325,20.309,62.681]
[1693932756586,7.675,20.325,20.309,87.18864232]
[1693932756790,7.675,20.325,20.31,24.50764232]
[1693932757105,7.675,20.325,20.311,55.0]
[1693932757691,7.675,20.325,20.311,79.50764232]
[1693932758305,7.674,20.327,20.311,87.18764232]
[1693932758606,7.674,20.327,20.312,24.50764232]
[1693932758795,7.673,20.33,20.313,62.679]
[1693932759107,7.673,20.33,20.314,24.50764232]
[1693932759504,7.673,20.33,20.314,32.18664232]
[1693932760706,7.673,20.33,20.314,24.50764232]
[1693932762198,7.673,20.33,20.315,55.0]
[1693932762393,7.673,20.33,20.315,79.50764232]
[1693932762602,121.2584,20.339,20.317,7.678]
[1693932762804,96.4784,20.339,20.32,24.62]
[1693932763007,104.1484,20.339,20.324,7.675]
[1693932764511,96.4784,20.339,20.324,32.18264232]
[1693932764807,96.4784,20.339,20.325,24.50764232]
[1693932765111,96.4784,20.339,20.326,7.674]
[1693932765309,104.1484,20.339,20.321,7.676]
[1693932765513,104.1484,20.339,20.322,24.50764232]
[1693932765719,104.1484,20.339,20.316,7.678]
[1693932765903,55.0,20.338,20.311,24.50764232]
[1693932766105,7.673,20.33,20.315,24.50764232]
[1693932766403,7.672,20.333,20.316,7.678]
[1693932766606,7.672,20.332,20.316,32.18564232]
[1693932767214,7.672,20.332,20.317,24.50764232]
[1693932767608,7.672,20.332,20.316,7.678]
[1693932768001,7.672,20.332,20.314,7.679]
[1693932768202,7.672,20.332,20.312,24.50764232]
[1693932768397,7.672,20.332,20.313,27.679]
[1693932768603,7.672,20.332,20.314,24.50764232]
[1693932768909,7.672,20.332,20.317,7.678]
[1693932769215,7.672,20.332,20.315,7.678]
[1693932769415,7.672,20.332,20.316,55.0]
[1693932769614,7.672,20.332,20.316,87.18564232]
[1693932770016,7.672,20.332,20.316,32.18564232]
[1693932770809,54.087,20.338,20.316,7.678]
[1693932771014,7.672,20.333,20.317,79.50764232]
[1693932771816,7.672,20.333,20.317,24.50764232]
[1693932772009,7.672,20.333,20.31,117.84053076]
[1693932772211,7.672,20.333,20.311,44.50764232]
[1693932772405,7.672,20.333,20.314,7.679]
[1693932772618,7.672,20.333,20.315,24.50764232]
[1693932772919,7.672,20.333,20.317,7.677]
[1693932773122,7.672,20.333,20.317,32.18464232]
[1693932774215,7.672,20.333,20.317,24.50764232]
[1693932774520,7.672,20.333,20.312,24.812]
[1693932774521,7.672,20.333,20.313,24.50764232]
[1693932774908,7.672,20.333,20.314,55.0]
[1693932776619,7.672,20.333,20.314,24.50764232]
[1693932777724,55.0,20.332,20.311,32.18764232]
[1693932778110,54.096,20.335,20.311,32.18764232]
[1693932778311,20.0,20.334,20.312,24.50764232]
[1693932778512,55.0,20.333,20.309,24.50764232]
[1693932778811,55.0,20.333,20.31,24.50764232]
[1693932779224,55.0,20.333,20.31,32.18764232]
[1693932779524,20.0,20.334,20.31,32.18764232]
[1693932779722,20.0,20.334,20.312,7.68]
[1693932779923,20.0,20.334,20.313,79.50764232]
[1693932780106,20.0,20.334,20.313,24.50764232]
[1693932780312,20.0,20.334,20.311,7.68]
[1693932780511,20.0,20.334,20.312,24.50764232]
[1693932781721,55.0,20.333,20.312,32.18764232]
[1693932782723,20.0,20.334,20.312,32.18764232]
[1693932782927,20.0,20.334,20.312,24.50764232]
[1693932783225,39.22402756,20.335,20.312,24.50764232]
[1693932783427,20.0,20.334,20.312,24.50764232]
[1693932783731,20.0,20.336,20.312,24.50764232]
[1693932784233,55.0,20.335,20.312,24.50764232]
[1693932784526,49.06,20.34,20.312,32.18664232]
[1693932784732,49.06,20.34,20.313,71.04085]
[1693932784934,49.06,20.34,20.314,24.50764232]
[1693932785118,49.06,20.34,20.314,32.18664232]
[1693932785325,49.06,20.34,20.315,55.0]
[1693932785532,49.06,20.34,20.316,24.50764232]
[1693932785730,49.06,20.34,20.317,62.678]
[1693932785928,49.06,20.34,20.317,87.18564232]
[1693932786130,60.19121816,20.35,20.317,87.18564232]
[1693932786131,109.25121816,20.35,20.318,24.50764232]
[1693932786334,109.25121816,20.35,20.319,62.677]
[1693932786535,109.25121816,20.35,20.32,24.50764232]
[1693932786736,109.25121816,20.35,20.321,55.0]
[1693932786936,109.25121816,20.35,20.321,79.50764232]
[1693932787235,39.12512314,20.343,20.321,79.50764232]
[1693932787939,39.12512314,20.343,20.322,24.50764232]
[1693932788140,39.12512314,20.343,20.323,55.0]
[1693932788337,49.06,20.35,20.323,87.18264232]
[1693932788531,49.06,20.35,20.324,24.50764232]
[1693932788833,49.06,20.35,20.325,62.675]
[1693932789038,49.06,20.35,20.325,87.18264232]
[1693932789237,40.01574803,20.347,20.325,87.18264232]
[1693932789424,20.0,20.346,20.328,7.674]
[1693932790043,20.0,20.348,20.326,32.18164232]
[1693932790343,20.0,20.348,20.327,55.0]
[1693932790646,20.0,20.348,20.32,48.99]
[1693932790820,2.70914973,20.347,20.321,24.50764232]
[1693932791027,2.70914973,20.347,20.322,16.03374]
[1693932791222,20.0,20.348,20.323,24.50764232]
[1693932791927,2.48354571,20.347,20.323,24.50764232]
[1693932792128,20.0,20.348,20.324,62.675]
[1693932792329,20.0,20.348,20.325,24.50764232]
[1693932792630,20.0,20.348,20.326,62.674]
[1693932793533,20.0,20.348,20.326,87.18164232]
[1693932794734,20.0,20.348,20.326,24.50764232]
[1693932794937,2.65347152,20.347,20.322,16.03374]
[1693932795136,2.65347152,20.347,20.32,7.676]
[1693932795433,13.78468968,20.347,20.32,7.676]
[1693932795749,75.0,20.346,20.32,7.676]
[1693932795943,3.18020522,20.345,20.32,7.676]
[1693932796443,3.18020522,20.345,20.318,32.18464232]
[1693932796948,3.18020522,20.345,20.318,24.50764232]
[1693932796949,48.99,20.34,20.318,24.50764232]
[1693932797445,48.99,20.34,20.312,39.7440197]
[1693932797446,2.89791901,20.338,20.312,14.9320197]
[1693932797640,2.89791901,20.338,20.313,44.50764232]
[1693932798347,2.89791901,20.338,20.314,7.679]
[1693932798532,2.89791901,20.338,20.314,32.18664232]
[1693932798732,2.89791901,20.338,20.315,55.0]
[1693932799135,2.89791901,20.338,20.314,32.18664232]
[1693932799341,2.89791901,20.338,20.314,24.50764232]
[1693932800830,22.89791901,20.338,20.314,24.50764232]
[1693932801036,22.89791901,20.338,20.305,63.61471213]
[1693932801037,2.89791901,20.329,20.305,24.50764232]
[1693932801240,57.89791901,20.329,20.305,24.50764232]
[1693932801435,55.0,20.329,20.305,24.50764232]
[1693932801630,2.52270196,20.328,20.305,24.50764232]
[1693932801832,156.39400196,20.328,20.305,24.50764232]
[1693932802037,153.8713,20.328,20.305,32.18964232]
[1693932802638,153.8713,20.328,20.306,24.50764232]
[1693932802837,153.8713,20.328,20.307,7.681]
[1693932803251,153.8713,20.328,20.307,32.18864232]
[1693932803252,98.8713,20.328,20.307,32.18864232]
[1693932803451,98.8713,20.328,20.308,24.50764232]
[1693932803640,98.8713,20.328,20.309,7.681]
[1693932804441,98.8713,20.328,20.301,54.31265384]
[1693932804754,57.52002902,20.327,20.306,24.50764232]
[1693932804956,55.0,20.327,20.306,24.50764232]
[1693932805346,55.0,20.327,20.306,32.18964232]
[1693932805646,2.48393166,20.326,20.306,32.18964232]
[1693932805853,55.0,20.327,20.306,32.18964232]
[1693932806054,2.49319498,20.326,20.306,32.18964232]
[1693932806241,2.49319498,20.326,20.306,24.50764232]
[1693932806637,55.0,20.327,20.306,24.50764232]
[1693932806838,55.0,20.329,20.306,24.50764232]
[1693932807155,2.87913935,20.328,20.306,24.50764232]
[1693932807738,55.0,20.329,20.306,24.50764232]
[1693932807933,48.99,20.33,20.307,7.681]
[1693932808159,103.71561574,20.33,20.308,55.0]
[1693932808456,63.81413792,20.33,20.308,87.18864232]
[1693932808837,63.81413792,20.33,20.308,112.00564232]
[1693932809450,14.82413792,20.33,20.308,112.00564232]